bitfinex/quotes_BTCUSD_20260311
["timestamp","ask_amount","ask_price","bid_price","bid_amount"]
[1773246793847,0.00011126,70546.0,70523.0,0.00132]
[1773246794612,0.07098713,70546.0,70523.0,0.00132]
[1773246795250,0.00011126,70546.0,70523.0,0.00132]
[1773246795858,0.00011126,70546.0,70524.0,0.07089785]
[1773246799713,0.00111126,70546.0,70524.0,0.07089785]
[1773246799920,0.07086016,70562.0,70524.0,0.07089785]
[1773246799921,0.28264342,70578.0,70530.0,0.12643103]
[1773246800120,0.16744871,70563.0,70530.0,0.12654229]
[1773246800322,0.23830608,70565.0,70531.0,0.0014]
[1773246801187,0.16744871,70564.0,70531.0,0.0014]
[1773246801597,0.12643103,70560.0,70523.0,0.07089785]
[1773246801800,0.16744871,70544.0,70522.0,0.00141658]
[1773246802001,0.16744871,70541.0,70524.0,0.0002]
[1773246802222,0.07087975,70542.0,70524.0,0.0002]
[1773246802223,0.16744871,70538.0,70524.0,0.0002]
[1773246802392,0.16744871,70533.0,70522.0,0.07231605]
[1773246802794,0.16744871,70535.0,70522.0,0.07231605]
[1773246803220,0.16744871,70535.0,70531.0,0.001]
[1773246803439,0.16756016,70535.0,70522.0,0.07231605]
[1773246803616,0.16744871,70534.0,70522.0,0.07231605]
[1773246803828,0.16744871,70531.0,70522.0,0.07231605]
[1773246804221,0.16744871,70531.0,70492.0,0.0002]
[1773246804222,0.16744871,70526.0,70518.0,0.07090365]
[1773246804588,0.30841177,70525.0,70518.0,0.07090365]
[1773246804757,0.14096306,70524.0,70518.0,0.07090365]
[1773246804911,0.14096306,70523.0,70518.0,0.07230365]
[1773246805120,0.14096306,70522.0,70518.0,0.07230365]
[1773246805309,0.14096306,70521.0,70518.0,0.07230365]
[1773246805653,0.14096306,70520.0,70518.0,0.07230365]
[1773246805858,0.07099885,70535.0,70518.0,0.07230365]
[1773246805859,0.20933496,70538.0,70518.0,0.07230365]
[1773246806063,0.07087789,70544.0,70518.0,0.0724151]
[1773246806390,0.07087789,70544.0,70518.0,0.07241519]
[1773246806591,0.07087789,70544.0,70518.0,0.00151145]
[1773246806869,0.07087789,70544.0,70519.0,0.07230287]
[1773246807044,0.07231789,70544.0,70519.0,0.07230287]
[1773246808007,0.07231789,70544.0,70516.0,0.07110287]
[1773246808008,0.07231789,70544.0,70516.0,0.0002]
[1773246808009,0.07088277,70539.0,70516.0,0.0002]
[1773246808185,0.07099426,70539.0,70516.0,0.07110561]
[1773246808369,0.00144,70538.0,70516.0,0.07110561]
[1773246808778,0.07099426,70539.0,70516.0,0.07110561]
[1773246808989,0.00144,70538.0,70516.0,0.07110561]
[1773246809191,0.00144,70538.0,70516.0,0.0002]
[1773246809551,0.07099426,70539.0,70516.0,0.07110573]
[1773246809688,0.00144,70538.0,70519.0,0.001]
[1773246810096,0.07088478,70537.0,70519.0,0.0002]
[1773246810498,0.07088478,70537.0,70500.0,0.07092198]
[1773246810702,0.07088478,70537.0,70504.0,0.0002]
[1773246812165,0.07088478,70537.0,70505.0,0.07091695]
[1773246813842,0.07188478,70537.0,70505.0,0.07091695]
[1773246814215,0.07088478,70537.0,70504.0,0.0420339]
[1773246814417,0.00144,70536.0,70504.0,0.0420339]
[1773246815409,0.00144,70536.0,70505.0,0.00144]
[1773246815560,0.00144,70535.0,70506.0,0.00144]
[1773246816165,0.07088478,70538.0,70507.0,0.00144]
[1773246816377,0.00144,70537.0,70508.0,0.07091393]
[1773246816512,0.00011149,70539.0,70508.0,0.07091393]
[1773246816713,0.00144,70538.0,70509.0,0.00144]
[1773246816940,0.07109675,70546.0,70509.0,0.00144]
[1773246816941,0.00022001,70546.0,70520.0,0.12643103]
[1773246817143,0.20933496,70557.0,70530.0,0.12643103]
[1773246817144,0.07230546,70557.0,70530.0,0.12643103]
[1773246817336,0.00144,70557.0,70531.0,0.00144]
[1773246817651,0.00048,70559.0,70520.0,0.12654252]
[1773246817652,0.00048,70559.0,70532.0,0.00144]
[1773246817852,0.14099551,70553.0,70533.0,0.00144]
[1773246818150,0.14099551,70552.0,70534.0,0.00144]
[1773246818350,0.14099551,70551.0,70535.0,0.00144]
[1773246818502,0.14099551,70553.0,70536.0,0.00144]
[1773246818703,0.14099551,70553.0,70521.0,0.07090086]
[1773246818704,0.14099551,70555.0,70537.0,0.00144]
[1773246818958,0.14099551,70555.0,70538.0,0.00144]
[1773246819151,0.07108779,70554.0,70539.0,0.00144]
[1773246819450,0.00022001,70554.0,70540.0,0.00144]
[1773246820326,0.00022001,70554.0,70541.0,0.07088076]
[1773246821384,0.00022001,70554.0,70542.0,0.30520628]
[1773246821584,0.00022001,70554.0,70543.0,0.30520628]
[1773246821745,0.00022001,70554.0,70544.0,0.13873013]
[1773246821948,0.00014173,70555.0,70545.0,0.13873013]
[1773246822121,0.00014173,70555.0,70546.0,0.13873013]
[1773246822363,0.00014173,70555.0,70548.0,0.07087373]
[1773246822560,0.00144,70567.0,70549.0,0.13873013]
[1773246822766,0.00011151,70567.0,70550.0,0.13873013]
[1773246822981,0.00011151,70567.0,70551.0,0.13873013]
[1773246823194,0.00011151,70567.0,70552.0,0.13873013]
[1773246823403,0.00011151,70567.0,70556.0,0.16647615]
[1773246823600,0.07083658,70585.0,70557.0,0.13873013]
[1773246823825,0.07083658,70585.0,70549.0,0.00144]
[1773246823826,0.00144,70601.0,70570.0,0.12658761]
[1773246824024,0.00025308,70590.0,70571.0,0.14017013]
[1773246824233,0.00025308,70590.0,70560.0,0.12658761]
[1773246824234,0.00025308,70590.0,70572.0,0.14017013]
[1773246824507,0.00025308,70590.0,70560.0,0.12658761]
[1773246824508,0.12886823,70642.0,70583.0,0.16647615]
[1773246824509,0.07129246,70610.0,70583.0,0.16647615]
[1773246824729,0.00144,70609.0,70586.0,0.16647615]
[1773246824921,0.00144,70609.0,70587.0,0.13873013]
[1773246825093,0.07129246,70610.0,70588.0,0.13858067]
[1773246825307,0.07129246,70610.0,70586.0,0.00011142]
[1773246825308,0.00144,70608.0,70586.0,0.00011142]
[1773246826162,0.00144,70608.0,70584.0,0.00144]
[1773246826368,0.0015514,70608.0,70584.0,0.00144]
[1773246826587,0.00144,70607.0,70585.0,0.07083658]
[1773246827511,0.00144,70607.0,70573.0,0.23732377]
[1773246827727,0.00144,70607.0,70574.0,0.0722876]
[1773246828308,0.00144,70607.0,70585.0,0.001]
[1773246828806,0.07081551,70606.0,70585.0,0.001]
[1773246829561,0.07081551,70606.0,70582.0,0.07083895]
[1773246829761,0.07081551,70606.0,70582.0,0.07068949]
[1773246830379,0.07181551,70606.0,70582.0,0.07068949]
[1773246830713,0.07081551,70606.0,70580.0,0.07084079]
[1773246830913,0.07181551,70606.0,70580.0,0.07084079]
[1773246831111,0.07281551,70606.0,70580.0,0.07084079]
[1773246831490,0.07181551,70606.0,70580.0,0.07084079]
[1773246832052,0.00144,70605.0,70580.0,0.07084079]
[1773246832479,0.07103552,70606.0,70580.0,0.07084079]
[1773246832684,0.07081751,70604.0,70580.0,0.07069906]
[1773246832897,0.00014166,70590.0,70580.0,0.07069906]
[1773246833319,0.00144,70604.0,70580.0,0.07069906]
[1773246833976,0.0708175,70605.0,70580.0,0.07069906]
[1773246834179,0.0708175,70605.0,70580.0,0.07169906]
[1773246834387,0.0722575,70605.0,70580.0,0.07069906]
[1773246834816,0.0708175,70605.0,70580.0,0.07069906]
[1773246835020,0.0722575,70605.0,70580.0,0.07069906]
[1773246835485,0.00022001,70606.0,70580.0,0.07069906]
[1773246835704,0.00022001,70606.0,70580.0,0.19728667]
[1773246836130,0.00144,70623.0,70590.0,0.12658761]
[1773246836340,0.0707865,70635.0,70600.0,0.12658761]
[1773246836556,0.07130401,70650.0,70601.0,0.00144]
[1773246836557,0.07078833,70634.0,70601.0,0.00144]
[1773246836779,0.07100857,70633.0,70602.0,0.07081952]
[1773246838312,0.07100857,70633.0,70603.0,0.00144]
[1773246838846,0.07100857,70633.0,70604.0,0.07081751]
[1773246839202,0.07100857,70633.0,70603.0,0.07225751]
[1773246839537,0.00144,70632.0,70603.0,0.07225751]
[1773246839908,0.07222944,70632.0,70603.0,0.07225751]
[1773246840294,0.07078944,70632.0,70603.0,0.07225751]
[1773246840434,0.07222944,70632.0,70603.0,0.07225751]
[1773246840833,0.07078944,70632.0,70603.0,0.07225751]
[1773246841091,0.07200945,70633.0,70610.0,0.1262508]
[1773246841092,0.00022001,70633.0,70610.0,0.1262508]
[1773246841321,0.07078309,70639.0,70603.0,0.07225751]
[1773246841322,0.07078345,70638.0,70611.0,0.00144]
[1773246841436,0.07078345,70638.0,70603.0,0.07081751]
[1773246841437,0.00022001,70648.0,70620.0,0.12658761]
[1773246841642,0.00022001,70648.0,70621.0,0.00144]
[1773246841847,0.07099355,70648.0,70621.0,0.00144]
[1773246842246,0.00022001,70648.0,70621.0,0.00129061]
[1773246842675,0.0005326,70650.0,70630.0,0.12658761]
[1773246842904,0.00192,70661.0,70630.0,0.12658761]
[1773246842905,0.07268083,70661.0,70631.0,0.00144]
[1773246843066,0.07268083,70661.0,70632.0,0.07078944]
[1773246843272,0.07124083,70661.0,70632.0,0.07078944]
[1773246843537,0.08165929,70669.0,70640.0,0.12658761]
[1773246843538,0.01090656,70669.0,70640.0,0.12658761]
[1773246843732,0.01090656,70669.0,70641.0,0.00144]
[1773246844173,0.01090656,70669.0,70650.0,0.12658761]
[1773246844376,0.01090656,70669.0,70632.0,0.07078944]
[1773246844378,0.01103276,70669.0,70651.0,0.00144]
[1773246844569,0.01103276,70669.0,70652.0,0.00144]
[1773246844798,0.01103276,70669.0,70640.0,0.12658761]
[1773246844799,0.01103276,70669.0,70653.0,0.00144]
[1773246844967,0.01103276,70669.0,70655.0,0.0707664]
[1773246845846,0.08215722,70669.0,70655.0,0.0707664]
[1773246846404,0.08237723,70669.0,70654.0,0.0722064]
[1773246846686,0.08237723,70669.0,70655.0,0.00144]
[1773246846875,0.08237723,70669.0,70647.0,0.07077441]
[1773246847054,0.08237723,70669.0,70649.0,0.07077241]
[1773246847055,0.00141517,70663.0,70649.0,0.07077241]
[1773246847434,0.00141517,70663.0,70642.0,0.07077923]
[1773246847645,0.00141517,70663.0,70643.0,0.07221842]
[1773246847856,0.00141517,70663.0,70644.0,0.13796399]
[1773246848054,0.00141517,70663.0,70647.0,0.002]
[1773246848297,0.00141517,70663.0,70647.0,0.001]
[1773246849061,0.0001262,70666.0,70647.0,0.001]
[1773246849062,0.0001262,70666.0,70649.0,0.07077241]
[1773246849632,0.0001262,70666.0,70650.0,0.00144]
[1773246850060,0.07074666,70675.0,70650.0,0.00144]
[1773246850061,0.00022001,70677.0,70656.0,0.12658761]
[1773246850235,0.00033134,70677.0,70656.0,0.12658761]
[1773246850574,0.00033134,70677.0,70657.0,0.00144]
[1773246850771,0.07074537,70676.0,70657.0,0.00144]
[1773246850973,0.00033134,70677.0,70657.0,0.00144]
[1773246850974,0.07107589,70677.0,70659.0,0.07076239]
[1773246851189,0.00033134,70677.0,70660.0,0.00144]
[1773246851376,0.00033134,70677.0,70658.0,0.07076239]
[1773246851377,0.00033134,70677.0,70661.0,0.00144]
[1773246853065,0.00033134,70677.0,70662.0,0.13653208]
[1773246853265,0.00022001,70684.0,70663.0,0.20728062]
[1773246853468,0.00022001,70684.0,70664.0,0.13643744]
[1773246853670,0.00022001,70684.0,70663.0,0.07086971]
[1773246853671,0.00022001,70684.0,70665.0,0.00144]
[1773246853912,7.5e-05,70693.0,70666.0,0.13644409]
[1773246854117,0.0006388,70702.0,70670.0,0.1264461]
[1773246854322,0.00014144,70700.0,70680.0,0.12658761]
[1773246854478,0.00014144,70700.0,70681.0,0.00144]
[1773246854676,0.00014144,70700.0,70665.0,0.03497589]
[1773246854677,0.00014144,70700.0,70682.0,0.00144]
[1773246854876,0.00014144,70700.0,70683.0,0.00144]
[1773246855122,0.00014144,70700.0,70684.0,0.00144]
[1773246855334,0.00014144,70700.0,70685.0,0.06687523]
[1773246856390,0.00014144,70700.0,70686.0,0.00144]
[1773246856588,0.00025273,70700.0,70686.0,0.00144]
[1773246857205,0.00025273,70700.0,70687.0,0.07073436]
[1773246857929,0.07071943,70702.0,70687.0,0.07073436]
[1773246858128,0.04232848,70704.0,70687.0,0.07084565]
[1773246858694,0.07071492,70707.0,70687.0,0.07084565]
[1773246858900,0.09966754,70712.0,70687.0,0.07084565]
[1773246858901,0.02895762,70712.0,70687.0,0.07084565]
[1773246859239,0.02895762,70712.0,70690.0,0.12658761]
[1773246859629,0.09966752,70712.0,70687.0,0.07084565]
[1773246859817,0.09966752,70712.0,70688.0,0.00144]
[1773246860151,0.09966697,70712.0,70688.0,0.00144]
[1773246860403,0.09966724,70712.0,70689.0,0.1377301]
[1773246860566,0.09966724,70712.0,70690.0,0.1372901]
[1773246860774,0.09966724,70712.0,70691.0,0.00144]
[1773246861358,0.02895762,70712.0,70692.0,0.07072936]
[1773246862275,0.02895762,70712.0,70693.0,0.00144]
[1773246862501,0.02917763,70712.0,70693.0,0.00144]
[1773246862676,80.0,71099.0,70700.0,0.12658761]
[1773246862677,0.0706794,70742.0,70700.0,0.12658761]
[1773246862865,5.302e-05,70750.0,70701.0,0.00144]
[1773246862866,0.07068073,70741.0,70701.0,0.00144]
[1773246863063,0.07067736,70745.0,70710.0,0.12658761]
[1773246863272,0.07072509,70750.0,70701.0,0.00144]
[1773246863273,0.07072509,70750.0,70721.0,0.07070035]
[1773246863274,1e-08,70744.0,70721.0,0.07070035]
[1773246863468,1e-08,70744.0,70717.0,0.07070035]
[1773246863469,1e-08,70744.0,70722.0,0.00144]
[1773246863694,0.00022001,70727.0,70723.0,0.00144]
[1773246863894,0.00022001,70727.0,70722.0,0.00144]
[1773246864252,0.00011127,70727.0,70723.0,0.00144]
[1773246864411,1e-08,70744.0,70724.0,0.00144]
[1773246864621,0.00037082,70744.0,70725.0,0.00144]
[1773246864826,0.00037082,70744.0,70726.0,0.00144]
[1773246865027,0.00037082,70744.0,70727.0,0.00144]
[1773246865231,5.302e-05,70750.0,70714.0,0.03561531]
[1773246865232,5.302e-05,70750.0,70728.0,0.00144]
[1773246865432,0.0001642,70750.0,70728.0,0.00144]
[1773246865802,0.0001642,70750.0,70714.0,0.10632166]
[1773246865803,0.00136,70749.0,70714.0,0.07070635]
[1773246866001,0.00136,70749.0,70713.0,0.07214735]
[1773246866242,0.0384,70748.0,70704.0,0.00144]
[1773246866463,0.0384,70748.0,70701.0,0.07057891]
[1773246866464,0.0384,70742.0,70701.0,0.07057891]
[1773246866645,0.03234816,70741.0,70701.0,0.07057891]
[1773246867050,0.0384,70748.0,70701.0,0.07057891]
[1773246867254,0.0384,70748.0,70700.0,0.07072035]
[1773246867255,0.0384,70746.0,70700.0,0.07072035]
[1773246867512,0.0384,70746.0,70700.0,0.00144]
[1773246867513,0.0384,70744.0,70700.0,0.00144]
[1773246867815,0.0384,70741.0,70700.0,0.00144]
[1773246867969,0.0384,70745.0,70700.0,0.00144]
[1773246868172,0.001,70741.0,70700.0,0.00144]
[1773246868376,0.001,70741.0,70710.0,0.12658761]
[1773246868731,0.001,70741.0,70711.0,0.00144]
[1773246868732,0.0014,70740.0,70711.0,0.00144]
[1773246868852,0.0014,70740.0,70712.0,0.00144]
[1773246869049,0.001,70741.0,70713.0,0.00144]
[1773246869254,0.07068236,70739.0,70715.0,0.07070635]
[1773246869503,0.0014,70738.0,70715.0,0.07070635]
[1773246869710,0.07068236,70739.0,70715.0,0.07070635]
[1773246870204,0.00022001,70741.0,70715.0,0.07070635]
[1773246870444,0.07068136,70740.0,70715.0,0.07270635]
[1773246870559,0.07208136,70740.0,70715.0,0.07270635]
[1773246870764,0.07208136,70740.0,70715.0,0.07170635]
[1773246871037,0.07208136,70740.0,70715.0,0.07070635]
[1773246871196,0.0024,70739.0,70715.0,0.07070635]
[1773246871392,0.07068336,70738.0,70716.0,0.1365611]
[1773246871595,0.07068336,70738.0,70717.0,0.1365611]
[1773246871812,0.07068336,70738.0,70715.0,0.07070635]
[1773246871813,0.01124,70757.0,70718.0,0.13655033]
[1773246871998,0.07067337,70748.0,70719.0,0.13655033]
[1773246872196,0.07067337,70748.0,70715.0,0.07070635]
[1773246872197,0.07067337,70748.0,70720.0,0.13655033]
[1773246872363,0.07067337,70748.0,70721.0,0.13655033]
[1773246872567,0.07067337,70748.0,70715.0,0.07070635]
[1773246872845,0.07067337,70748.0,70716.0,0.13662597]
[1773246873049,0.07067337,70748.0,70717.0,0.13662597]
[1773246873248,0.00014139,70727.0,70717.0,0.13662597]
[1773246873436,0.0014,70739.0,70719.0,0.07070235]
[1773246873615,0.0014,70739.0,70720.0,0.13662597]
[1773246874158,0.07068062,70741.0,70720.0,0.13662597]
[1773246874290,0.07067858,70743.0,70720.0,0.13662597]
[1773246874291,0.07067874,70743.0,70720.0,0.13662597]
[1773246874496,0.0014,70742.0,70720.0,0.13699678]
[1773246874694,0.0014,70742.0,70721.0,0.13662597]
[1773246874918,0.0014,70741.0,70721.0,0.13662597]
[1773246875909,0.07068136,70740.0,70722.0,0.07069935]
[1773246876241,0.0014,70741.0,70723.0,0.13662597]
[1773246876422,0.00144,70742.0,70723.0,0.13662597]
[1773246877527,0.00144,70741.0,70723.0,0.13662597]
[1773246877725,0.00144,70741.0,70720.0,0.00037081]
[1773246878109,0.07068136,70740.0,70720.0,0.00037081]
[1773246878279,0.19726897,70740.0,70712.0,0.00048]
[1773246878475,0.19726897,70740.0,70708.0,0.18079378]
[1773246878476,0.19763978,70740.0,70708.0,0.11008045]
[1773246878676,0.07105217,70740.0,70708.0,0.07071294]
[1773246878878,0.00144,70739.0,70708.0,0.07071294]
[1773246879109,0.07105217,70740.0,70708.0,0.07071294]
[1773246879310,0.00144,70738.0,70711.0,0.11008045]
[1773246879514,0.00144,70738.0,70710.0,0.11008045]
[1773246879687,0.00144,70738.0,70708.0,0.18079339]
[1773246879860,0.00144,70738.0,70707.0,0.07071409]
[1773246880322,0.07068436,70737.0,70707.0,0.11008045]
[1773246880486,0.07068436,70737.0,70707.0,0.10993115]
[1773246880686,0.07068436,70737.0,70708.0,0.10993115]
[1773246881240,0.00144,70736.0,70708.0,0.10993115]
[1773246881383,0.00144,70736.0,70705.0,0.07071562]
[1773246881578,0.00144,70736.0,70703.0,0.16647615]
[1773246881782,0.0384,70735.0,70699.0,0.16647615]
[1773246881980,0.0384,70735.0,70700.0,0.16647615]
[1773246882524,0.00144,70734.0,70706.0,0.16647615]
[1773246882724,0.00144,70734.0,70706.0,0.00144]
[1773246882924,0.00144,70734.0,70707.0,0.23375536]
[1773246883140,0.07068736,70735.0,70707.0,0.23375536]
[1773246883503,0.07068736,70735.0,70704.0,0.00144]
[1773246883504,0.00144,70734.0,70704.0,0.00144]
[1773246883697,0.00144,70733.0,70703.0,0.00144]
[1773246883908,0.5,70734.0,70704.0,0.24777996]
[1773246884108,0.00144,70732.0,70704.0,0.24777996]
[1773246884339,0.07069036,70731.0,70706.0,0.24777996]
[1773246884550,0.07069036,70732.0,70706.0,0.24777996]
[1773246884551,0.00144,70730.0,70706.0,0.24777996]
[1773246884748,0.00144,70729.0,70706.0,0.24777996]
[1773246885378,0.00144,70728.0,70708.0,0.24840496]
[1773246885715,0.00144,70727.0,70708.0,0.24840496]
[1773246885921,0.02069036,70732.0,70708.0,0.24840496]
[1773246886267,0.07069136,70730.0,70709.0,0.07071235]
[1773246886473,0.07069136,70730.0,70711.0,0.19325032]
[1773246886668,0.00144,70729.0,70712.0,0.24840496]
[1773246886880,0.00144,70729.0,70712.0,0.24825565]
[1773246887629,0.07068836,70733.0,70712.0,0.24825565]
[1773246887777,0.00144,70732.0,70712.0,0.24825565]
[1773246887980,0.00144,70732.0,70709.0,0.07071235]
[1773246887981,0.07068836,70733.0,70709.0,0.07071235]
[1773246888184,0.00144,70731.0,70710.0,0.24978231]
[1773246888390,0.00144,70731.0,70712.0,0.24978231]
[1773246888391,0.07069136,70730.0,70712.0,0.24978231]
[1773246888910,0.00144,70729.0,70712.0,0.24978231]
[1773246889117,0.00144,70728.0,70712.0,0.24978231]
[1773246889862,0.00144,70728.0,70713.0,0.13798996]
[1773246890068,0.07069136,70730.0,70715.0,0.26182932]
[1773246890288,0.07069336,70728.0,70716.0,0.13798996]
[1773246890487,0.07069336,70728.0,70710.0,0.07071052]
[1773246890488,0.07069336,70728.0,70717.0,0.13798996]
[1773246890739,0.07069336,70728.0,70718.0,0.13798996]
[1773246890888,0.07069336,70728.0,70720.0,0.26182932]
[1773246891078,0.07069336,70728.0,70722.0,0.26220336]
[1773246891079,0.00144,70727.0,70722.0,0.26220336]
[1773246891279,0.00144,70727.0,70724.0,0.26220336]
[1773246891498,0.5,70725.0,70724.0,0.26220336]
[1773246891703,0.5,70725.0,70724.0,0.40034606]
[1773246892056,0.5,70725.0,70724.0,0.1381427]
[1773246892205,0.07068436,70737.0,70724.0,0.1281427]
[1773246892404,0.07068436,70737.0,70715.0,0.07070535]
[1773246892405,0.07068636,70735.0,70723.0,0.13110168]
[1773246893019,0.07068636,70735.0,70719.0,0.13227048]
[1773246893360,0.07090342,70738.0,70719.0,0.13227048]
[1773246893649,0.00144,70737.0,70719.0,0.13227048]
[1773246894385,0.001,70735.0,70719.0,0.13227048]
[1773246894559,0.00144,70736.0,70719.0,0.13227048]
[1773246894732,0.00144,70736.0,70714.0,0.00144]
[1773246894938,0.10943056,70735.0,70712.0,0.1122112]
[1773246895134,0.10943056,70735.0,70717.0,5.067e-05]
[1773246895313,0.10943056,70735.0,70718.0,0.1122112]
[1773246895505,0.07090342,70738.0,70718.0,0.1122112]
[1773246895506,0.0706834,70738.0,70718.0,0.1122112]
[1773246895710,0.07068336,70738.0,70719.0,0.12262386]
[1773246895927,0.00144,70737.0,70719.0,0.12262386]
[1773246896452,0.00144,70737.0,70721.0,0.07070035]
[1773246896453,0.07068536,70736.0,70721.0,0.07070035]
[1773246896752,0.00144,70735.0,70722.0,0.12118386]
[1773246898837,0.07068536,70737.0,70722.0,0.12118386]
[1773246899042,0.07068236,70739.0,70722.0,0.07069886]
[1773246899243,0.00144,70738.0,70723.0,0.12185042]
[1773246899487,0.07105244,70740.0,70723.0,0.12185042]
[1773246899698,0.00144,70737.0,70723.0,0.12185042]
[1773246899900,0.07090123,70741.0,70723.0,0.12185042]
[1773246900102,0.001,70739.0,70723.0,0.12222123]
[1773246900278,0.00022001,70749.0,70723.0,0.12222123]
[1773246900279,0.00022001,70749.0,70723.0,0.12192263]
[1773246900479,0.07080811,70755.0,70731.0,0.12170112]
[1773246900679,0.07066951,70752.0,70733.0,0.12170112]
[1773246900882,0.07066908,70753.0,70735.0,0.12170112]
[1773246901302,0.00069756,70751.0,70732.0,0.12172126]
[1773246901576,0.07066803,70754.0,70730.0,0.07069078]
[1773246901577,0.00144,70752.0,70734.0,0.12172126]
[1773246901776,0.00144,70752.0,70734.0,0.12157198]
[1773246902427,0.00144,70752.0,70728.0,0.07069136]
[1773246902428,0.07066738,70754.0,70724.0,0.12164662]
[1773246902584,0.07066738,70754.0,70726.0,0.12164662]
[1773246902791,0.07066838,70753.0,70727.0,0.07069436]
[1773246902994,0.07066838,70754.0,70728.0,0.12164662]
[1773246903178,0.00158133,70755.0,70732.0,0.12221826]
[1773246903383,0.00014126,70790.0,70740.0,0.12602419]
[1773246903584,0.00014126,70790.0,70760.0,0.12602419]
[1773246903585,0.07063263,70789.0,70760.0,0.12602419]
[1773246903810,0.07063263,70789.0,70762.0,0.12214362]
[1773246904212,0.07063263,70789.0,70763.0,0.00144]
[1773246904213,0.00144,70788.0,70763.0,0.00144]
[1773246904418,0.07063263,70789.0,70764.0,0.12214362]
[1773246904625,0.00144,70787.0,70764.0,0.12214362]
[1773246904826,0.00144,70787.0,70763.0,0.00144]
[1773246904827,0.07063543,70786.0,70767.0,0.12214362]
[1773246905054,0.07063543,70786.0,70766.0,0.07065539]
[1773246905055,0.07063543,70786.0,70769.0,0.12206898]
[1773246905205,0.07063543,70786.0,70771.0,0.12206898]
[1773246905409,0.00144,70785.0,70771.0,0.12206898]
[1773246905656,0.00144,70785.0,70770.0,0.00144]
[1773246905968,0.00144,70785.0,70771.0,0.11706898]
[1773246906287,0.07207543,70786.0,70771.0,0.11706898]
[1773246906613,0.07063543,70786.0,70771.0,0.11706898]
[1773246906964,0.00978954,70785.0,70771.0,0.11706898]
[1773246907387,0.07207543,70786.0,70771.0,0.10706898]
[1773246907585,0.11779836,70785.0,70765.0,0.11206987]
[1773246907786,0.07207543,70786.0,70750.0,0.1122112]
[1773246907787,0.12602419,70780.0,70750.0,0.1122112]
[1773246907965,0.12602419,70780.0,70751.0,0.13753011]
[1773246907966,0.11779836,70779.0,70751.0,0.13753011]
[1773246908183,0.11779836,70777.0,70748.0,0.1122112]
[1773246908364,0.11779836,70777.0,70741.0,0.00144]
[1773246908705,0.11779836,70777.0,70716.0,0.27746026]
[1773246908706,0.11779836,70777.0,70733.0,0.1122112]
[1773246908707,0.11779836,70768.0,70733.0,0.1122112]
[1773246908907,0.11779836,70765.0,70733.0,0.1122112]
[1773246909107,0.11779836,70765.0,70727.0,0.1122112]
[1773246909278,0.07065539,70766.0,70724.0,0.00144]
[1773246909279,0.12602419,70760.0,70724.0,0.1122112]
[1773246909471,0.11779836,70759.0,70724.0,0.1122112]
[1773246909698,0.11779836,70759.0,70718.0,0.07070302]
[1773246909699,0.11779836,70749.0,70718.0,0.1122112]
[1773246909864,0.12602419,70750.0,70717.0,0.11226187]
[1773246909865,0.11779836,70747.0,70717.0,0.11226187]
[1773246910067,0.00144,70746.0,70718.0,0.1122112]
[1773246910261,0.002,70765.0,70718.0,0.1122112]
[1773246910262,0.00144,70745.0,70718.0,0.1122112]
[1773246910483,0.11923836,70744.0,70719.0,0.00144]
[1773246910691,0.11779836,70742.0,70720.0,0.1122112]
[1773246910890,0.11779836,70738.0,70720.0,0.1122112]
[1773246911092,0.11779836,70738.0,70720.0,0.182912]
[1773246911291,0.07068236,70739.0,70721.0,0.1122112]
[1773246911694,0.00144,70738.0,70721.0,0.1122112]
[1773246911897,0.11779836,70737.0,70721.0,0.1122112]
[1773246912314,0.11779836,70737.0,70718.0,0.1122112]
[1773246912490,0.11779836,70737.0,70717.0,0.11263268]
[1773246912905,0.11779836,70735.0,70712.0,0.0002]
[1773246913129,0.11779836,70735.0,70713.0,0.1122112]
[1773246913555,0.11779836,70735.0,70712.0,0.00031127]
[1773246913903,0.11779836,70735.0,70709.0,0.0002]
[1773246914100,0.11790959,70735.0,70709.0,1e-08]
[1773246914303,0.11890959,70735.0,70709.0,1e-08]
[1773246914510,0.11779836,70729.0,70709.0,1e-08]
[1773246914728,0.11779836,70727.0,70710.0,0.1122112]
[1773246915056,0.11779836,70727.0,70709.0,1e-08]
[1773246915057,0.00111123,70735.0,70712.0,0.1122112]
[1773246915058,0.00144,70726.0,70712.0,0.1122112]
[1773246915214,0.00144,70725.0,70712.0,0.1122112]
[1773246915417,0.00144,70729.0,70714.0,0.1122112]
[1773246915629,0.07179807,70735.0,70714.0,0.1122112]
[1773246915956,0.11779836,70748.0,70714.0,0.1122112]
[1773246915957,0.00144,70737.0,70714.0,0.1122112]
[1773246916175,0.07067737,70744.0,70714.0,0.1122112]
[1773246916176,0.00144,70738.0,70714.0,0.11232243]
[1773246916313,0.00144,70738.0,70722.0,0.1122112]
[1773246916514,0.00144,70738.0,70724.0,0.1122112]
[1773246916956,0.07068436,70737.0,70724.0,0.1122112]
[1773246917376,0.07068436,70737.0,70725.0,0.1122112]
[1773246917677,0.07068358,70738.0,70725.0,0.1122112]
[1773246917884,0.11779836,70749.0,70725.0,0.1122112]
[1773246917885,0.07067897,70743.0,70725.0,0.1122112]
[1773246918090,0.07067362,70748.0,70725.0,0.1122112]
[1773246918383,0.07211437,70747.0,70727.0,0.1122112]
[1773246919061,0.11779836,70742.0,70726.0,0.00144]
[1773246919380,0.001,70743.0,70727.0,0.1122112]
[1773246919534,0.11779836,70744.0,70727.0,0.1122112]
[1773246919734,0.07067637,70745.0,70727.0,0.1122112]
[1773246919935,0.07067546,70746.0,70727.0,0.1122112]
[1773246920263,0.00144,70745.0,70727.0,0.1122112]
[1773246920462,0.001,70747.0,70727.0,0.1122112]
[1773246920704,0.07067637,70746.0,70727.0,0.1122112]
[1773246920870,0.001,70744.0,70727.0,0.1122112]
[1773246921074,0.07067837,70743.0,70729.0,0.11525631]
[1773246921271,0.07211837,70743.0,70729.0,0.11525631]
[1773246921643,0.002,70744.0,70729.0,0.11525631]
[1773246921848,0.07067837,70745.0,70729.0,0.11525631]
[1773246922271,0.07067837,70745.0,70716.0,0.11545631]
[1773246922272,0.11363135,70744.0,70716.0,0.11545631]
[1773246922473,0.11363135,70744.0,70720.0,0.18595757]
[1773246922853,0.11363135,70744.0,70729.0,0.001]
[1773246923054,0.11363135,70742.0,70729.0,0.001]
[1773246923262,0.11363135,70742.0,70722.0,0.11525631]
[1773246923459,0.11363135,70742.0,70720.0,0.18595758]
[1773246923863,0.07067837,70743.0,70720.0,0.07070127]
[1773246924110,0.07067837,70743.0,70725.0,0.11525631]
[1773246924111,0.00144,70742.0,70725.0,0.11525631]
[1773246924317,0.07067837,70743.0,70725.0,0.11525631]
[1773246924519,0.00144,70742.0,70725.0,0.11525631]
[1773246924744,0.11363135,70741.0,70725.0,0.11525631]